[Event "Titled Tuesday Blitz February 15 Early 2022"]
[White "Wang, Michael"]
[Black "Kiolbasa, Oliwia"]
[WhiteFideId "2079186"]
[BlackFideId "1154613"]
[WhiteElo "2201"]
[BlackElo "2190"]
[Result "0-1"]
[Round "02"]
[TimeControl "180+1"]
[Date "2022.02.15"]
[WhiteClock "0:00:04"]
[BlackClock "0:00:03"]

1. d4 {[%clk 0:03:00]}  d5 {[%clk 0:02:56]} 2. Nf3 {[%clk 0:02:59]}  Nf6 {[%clk 0:02:55]} 3. c4 {[%clk 0:02:58]}  e6 {[%clk 0:02:55]} 4. g3 {[%clk 0:02:58]}  dxc4 {[%clk 0:02:54]} 5. Bg2 {[%clk 0:02:56]}  c5 {[%clk 0:02:53]} 6. O-O {[%clk 0:02:40]}  Nc6 {[%clk 0:02:51]} 7. Be3 {[%clk 0:02:35]}  Ng4 {[%clk 0:02:26]} 8. Na3 {[%clk 0:02:35]}  Nxe3 {[%clk 0:02:24]} 9. fxe3 {[%clk 0:02:34]}  Be7 {[%clk 0:02:18]} 10. Nxc4 {[%clk 0:02:32]}  O-O {[%clk 0:02:18]} 11. Rc1 {[%clk 0:02:25]}  Rb8 {[%clk 0:01:53]} 12. Nfe5 {[%clk 0:01:54]}  Nxe5 {[%clk 0:01:47]} 13. dxe5 {[%clk 0:01:33]}  Bg5 {[%clk 0:01:21]} 14. a4 {[%clk 0:01:19]}  b6 {[%clk 0:01:16]} 15. h4 {[%clk 0:01:14]}  Bh6 {[%clk 0:01:03]} 16. Rc3 {[%clk 0:01:05]}  Qxd1 {[%clk 0:00:58]} 17. Rxd1 {[%clk 0:01:04]}  Ba6 {[%clk 0:00:59]} 18. Rd7 {[%clk 0:00:48]}  Rfd8 {[%clk 0:00:44]} 19. Rxa7 {[%clk 0:00:40]}  Bxc4 {[%clk 0:00:44]} 20. Rxc4 {[%clk 0:00:40]}  Bxe3+ {[%clk 0:00:45]} 21. Kh2 {[%clk 0:00:40]}  Bd4 {[%clk 0:00:38]} 22. b4 {[%clk 0:00:38]}  cxb4 {[%clk 0:00:32]} 23. Rxb4 {[%clk 0:00:34]}  Bxe5 {[%clk 0:00:32]} 24. a5 {[%clk 0:00:31]}  bxa5 {[%clk 0:00:23]} 25. Rxb8 {[%clk 0:00:32]}  Rxb8 {[%clk 0:00:20]} 26. Rxa5 {[%clk 0:00:32]}  Bd6 {[%clk 0:00:14]} 27. Bf3 {[%clk 0:00:22]}  g6 {[%clk 0:00:14]} 28. Kg2 {[%clk 0:00:22]}  h5 {[%clk 0:00:13]} 29. Ra7 {[%clk 0:00:19]}  Kg7 {[%clk 0:00:11]} 30. Rd7 {[%clk 0:00:18]}  Be5 {[%clk 0:00:10]} 31. Rd3 {[%clk 0:00:17]}  Kf6 {[%clk 0:00:10]} 32. Re3 {[%clk 0:00:17]}  Rb4 {[%clk 0:00:10]} 33. Rd3 {[%clk 0:00:17]}  Rb1 {[%clk 0:00:09]} 34. Rd2 {[%clk 0:00:15]}  Bc3 {[%clk 0:00:07]} 35. Rc2 {[%clk 0:00:15]}  Bb4 {[%clk 0:00:06]} 36. Ra2 {[%clk 0:00:15]}  Bc5 {[%clk 0:00:06]} 37. Rc2 {[%clk 0:00:15]}  Bd4 {[%clk 0:00:05]} 38. Rc4 {[%clk 0:00:15]}  e5 {[%clk 0:00:03]} 39. Rc7 {[%clk 0:00:14]}  Ke6 {[%clk 0:00:02]} 40. Rc6+ {[%clk 0:00:13]}  Kd7 {[%clk 0:00:02]} 41. Rc2 {[%clk 0:00:12]}  f5 {[%clk 0:00:02]} 42. e4 {[%clk 0:00:10]}  Rg1+ {[%clk 0:00:01]} 43. Kh2 {[%clk 0:00:10]}  Rf1 {[%clk 0:00:02]} 44. Bg2 {[%clk 0:00:08]}  Re1 {[%clk 0:00:02]} 45. Bh3 {[%clk 0:00:05]}  Ke6 {[%clk 0:00:01]} 46. exf5+ {[%clk 0:00:04]}  gxf5 {[%clk 0:00:02]} 47. Rc6+ {[%clk 0:00:04]}  Kd5 {[%clk 0:00:02]} 48. Rh6 {[%clk 0:00:02]}  Bg1+ {[%clk 0:00:01]} 49. Kg2 {[%clk 0:00:03]}  f4 {[%clk 0:00:02]} 50. gxf4 {[%clk 0:00:03]}  exf4 {[%clk 0:00:03]} 51. Rxh5+ {[%clk 0:00:02]}  Ke4 {[%clk 0:00:03]} 52. Bg4 {[%clk 0:00:03]}  Be3 {[%clk 0:00:02]} 53. Bf3+ {[%clk 0:00:04]}  Kd4 {[%clk 0:00:03]} 54. Rd5+ {[%clk 0:00:04]}  Kc4 {[%clk 0:00:03]} 55. h5 {[%clk 0:00:05]}  Rg1+ {[%clk 0:00:03]} 56. Kh2 {[%clk 0:00:05]}  Rg3 {[%clk 0:00:03]} 57. Bh1 {[%clk 0:00:04]}  Bg1# {[%clk 0:00:03]} 0-1


[Site "https://www.chess.com"]

[Event "Titled Tuesday Blitz February 15 Early 2022"]
[White "Wartiovaara, Oliver"]
[Black "Goryachkina, Aleksandra"]
[WhiteFideId "513024"]
[BlackFideId "4147103"]
[WhiteElo "1971"]
[BlackElo "2426"]
[Result "1/2-1/2"]
[Round "02"]
[TimeControl "180+1"]
[Date "2022.02.15"]
[WhiteClock "0:00:10"]
[BlackClock "0:00:04"]

1. d4 {[%clk 0:01:47]}  Nf6 {[%clk 0:02:58]} 2. c4 {[%clk 0:01:47]}  e6 {[%clk 0:02:58]} 3. g3 {[%clk 0:01:47]}  c5 {[%clk 0:02:56]} 4. d5 {[%clk 0:01:47]}  exd5 {[%clk 0:02:56]} 5. cxd5 {[%clk 0:01:48]}  d6 {[%clk 0:02:56]} 6. Bg2 {[%clk 0:01:48]}  g6 {[%clk 0:02:57]} 7. Nc3 {[%clk 0:01:48]}  Bg7 {[%clk 0:02:57]} 8. Nf3 {[%clk 0:01:48]}  O-O {[%clk 0:02:57]} 9. O-O {[%clk 0:01:48]}  Re8 {[%clk 0:02:57]} 10. Bf4 {[%clk 0:01:48]}  Ne4 {[%clk 0:02:56]} 11. Nxe4 {[%clk 0:01:47]}  Rxe4 {[%clk 0:02:56]} 12. Nd2 {[%clk 0:01:47]}  Rxf4 {[%clk 0:02:55]} 13. gxf4 {[%clk 0:01:46]}  Bxb2 {[%clk 0:02:55]} 14. Rb1 {[%clk 0:01:36]}  Bg7 {[%clk 0:02:54]} 15. Nc4 {[%clk 0:01:34]}  b6 {[%clk 0:02:50]} 16. a4 {[%clk 0:01:32]}  Ba6 {[%clk 0:02:29]} 17. Qc2 {[%clk 0:01:31]}  Qf6 {[%clk 0:02:18]} 18. e3 {[%clk 0:01:21]}  Nd7 {[%clk 0:02:18]} 19. Rfe1 {[%clk 0:01:17]}  Re8 {[%clk 0:02:13]} 20. Na3 {[%clk 0:01:09]}  g5 {[%clk 0:01:47]} 21. fxg5 {[%clk 0:01:01]}  Qxg5 {[%clk 0:01:47]} 22. Nb5 {[%clk 0:01:01]}  Bxb5 {[%clk 0:01:33]} 23. axb5 {[%clk 0:01:02]}  Nf6 {[%clk 0:01:30]} 24. f4 {[%clk 0:00:56]}  Qh5 {[%clk 0:01:12]} 25. Qd1 {[%clk 0:00:40]}  Qh4 {[%clk 0:00:49]} 26. Qf3 {[%clk 0:00:34]}  Ng4 {[%clk 0:00:49]} 27. Qg3 {[%clk 0:00:33]}  Qxg3 {[%clk 0:00:47]} 28. hxg3 {[%clk 0:00:34]}  Nxe3 {[%clk 0:00:46]} 29. Kf2 {[%clk 0:00:30]}  Bd4 {[%clk 0:00:44]} 30. Kf3 {[%clk 0:00:29]}  c4 {[%clk 0:00:44]} 31. Rbc1 {[%clk 0:00:27]}  Kf8 {[%clk 0:00:35]} 32. Bf1 {[%clk 0:00:21]}  c3 {[%clk 0:00:28]} 33. Rxc3 {[%clk 0:00:20]}  Nxf1 {[%clk 0:00:18]} 34. Rxe8+ {[%clk 0:00:18]}  Kxe8 {[%clk 0:00:18]} 35. Rc7 {[%clk 0:00:18]}  Nd2+ {[%clk 0:00:17]} 36. Kg4 {[%clk 0:00:16]}  Ne4 {[%clk 0:00:16]} 37. Rxa7 {[%clk 0:00:16]}  Nf6+ {[%clk 0:00:16]} 38. Kf5 {[%clk 0:00:13]}  Nd7 {[%clk 0:00:16]} 39. Ra8+ {[%clk 0:00:13]}  Ke7 {[%clk 0:00:16]} 40. Ra7 {[%clk 0:00:13]}  h6 {[%clk 0:00:14]} 41. g4 {[%clk 0:00:13]}  Bc5 {[%clk 0:00:14]} 42. g5 {[%clk 0:00:11]}  hxg5 {[%clk 0:00:14]} 43. fxg5 {[%clk 0:00:11]}  Bd4 {[%clk 0:00:14]} 44. Rb7 {[%clk 0:00:10]}  Kd8 {[%clk 0:00:13]} 45. Ra7 {[%clk 0:00:10]}  Ke8 {[%clk 0:00:08]} 46. Ra8+ {[%clk 0:00:09]}  Ke7 {[%clk 0:00:09]} 47. Ra7 {[%clk 0:00:09]}  Bc5 {[%clk 0:00:07]} 48. Ra8 {[%clk 0:00:08]}  Be3 {[%clk 0:00:06]} 49. Ra7 {[%clk 0:00:08]}  Bd2 {[%clk 0:00:06]} 50. Ra8 {[%clk 0:00:07]}  Bc1 {[%clk 0:00:05]} 51. Ra7 {[%clk 0:00:07]}  Bd2 {[%clk 0:00:03]} 52. Rb7 {[%clk 0:00:07]}  Be3 {[%clk 0:00:03]} 53. Ra7 {[%clk 0:00:07]}  Bc5 {[%clk 0:00:03]} 54. Rb7 {[%clk 0:00:08]}  Bd4 {[%clk 0:00:03]} 55. Ra7 {[%clk 0:00:08]}  Be3 {[%clk 0:00:04]} 56. Rb7 {[%clk 0:00:09]}  Bd2 {[%clk 0:00:03]} 57. Ra7 {[%clk 0:00:09]}  Bc1 {[%clk 0:00:04]} 58. Rb7 {[%clk 0:00:09]}  Be3 {[%clk 0:00:04]} 59. Ra7 {[%clk 0:00:10]} 1/2-1/2


[Site "https://www.chess.com"]

[Event "Titled Tuesday Blitz February 15 Early 2022"]
[White "Williams, Simon K"]
[Black "Nesterov, Arseniy"]
[WhiteFideId "404454"]
[BlackFideId "24198455"]
[WhiteElo "2468"]
[BlackElo "2489"]
[Result "1-0"]
[Round "02"]
[TimeControl "180+1"]
[Date "2022.02.15"]
[WhiteClock "0:00:05"]
[BlackClock "0:00:04"]

1. d4 {[%clk 0:03:00]}  d5 {[%clk 0:03:00]} 2. c4 {[%clk 0:03:00]}  e6 {[%clk 0:03:00]} 3. Nc3 {[%clk 0:02:59]}  Nf6 {[%clk 0:02:58]} 4. Nf3 {[%clk 0:02:59]}  c5 {[%clk 0:02:50]} 5. cxd5 {[%clk 0:02:57]}  cxd4 {[%clk 0:02:50]} 6. Nxd4 {[%clk 0:02:47]}  Nxd5 {[%clk 0:02:49]} 7. Bd2 {[%clk 0:02:43]}  Be7 {[%clk 0:02:45]} 8. g3 {[%clk 0:02:40]}  Bf6 {[%clk 0:02:19]} 9. Ndb5 {[%clk 0:02:31]}  O-O {[%clk 0:01:58]} 10. Bg2 {[%clk 0:02:28]}  Nc6 {[%clk 0:01:36]} 11. O-O {[%clk 0:02:21]}  a6 {[%clk 0:01:19]} 12. Nxd5 {[%clk 0:02:19]}  exd5 {[%clk 0:01:19]} 13. Nc3 {[%clk 0:02:18]}  Be6 {[%clk 0:01:20]} 14. Rc1 {[%clk 0:02:10]}  Rc8 {[%clk 0:01:10]} 15. Bf4 {[%clk 0:01:56]}  d4 {[%clk 0:01:08]} 16. Ne4 {[%clk 0:01:56]}  Be7 {[%clk 0:01:09]} 17. Nc5 {[%clk 0:01:52]}  Bxc5 {[%clk 0:01:07]} 18. Rxc5 {[%clk 0:01:52]}  Bxa2 {[%clk 0:00:58]} 19. Qa4 {[%clk 0:01:04]}  Be6 {[%clk 0:00:56]} 20. Rfc1 {[%clk 0:01:02]}  Bg4 {[%clk 0:00:30]} 21. Qc2 {[%clk 0:00:47]}  Re8 {[%clk 0:00:26]} 22. Be4 {[%clk 0:00:41]}  h6 {[%clk 0:00:23]} 23. f3 {[%clk 0:00:38]}  Bd7 {[%clk 0:00:18]} 24. Qd2 {[%clk 0:00:35]}  Re6 {[%clk 0:00:14]} 25. Bd5 {[%clk 0:00:32]}  Rf6 {[%clk 0:00:11]} 26. h4 {[%clk 0:00:29]}  Qb6 {[%clk 0:00:10]} 27. Kg2 {[%clk 0:00:28]}  Re8 {[%clk 0:00:10]} 28. Be4 {[%clk 0:00:26]}  Rxe4 {[%clk 0:00:08]} 29. fxe4 {[%clk 0:00:26]}  Re6 {[%clk 0:00:09]} 30. e5 {[%clk 0:00:24]}  a5 {[%clk 0:00:05]} 31. Rd5 {[%clk 0:00:24]}  Be8 {[%clk 0:00:04]} 32. Rd6 {[%clk 0:00:24]}  Qb3 {[%clk 0:00:04]} 33. Qc2 {[%clk 0:00:21]}  Qb5 {[%clk 0:00:02]} 34. Rxe6 {[%clk 0:00:21]}  fxe6 {[%clk 0:00:03]} 35. Kh2 {[%clk 0:00:17]}  Bf7 {[%clk 0:00:03]} 36. Rd1 {[%clk 0:00:14]}  a4 {[%clk 0:00:03]} 37. Rd2 {[%clk 0:00:13]}  Qd5 {[%clk 0:00:03]} 38. Qd3 {[%clk 0:00:12]}  Nxe5 {[%clk 0:00:03]} 39. Bxe5 {[%clk 0:00:11]}  Qxe5 {[%clk 0:00:04]} 40. Qf3 {[%clk 0:00:12]}  b5 {[%clk 0:00:04]} 41. Qf4 {[%clk 0:00:12]}  Qd5 {[%clk 0:00:02]} 42. Qxd4 {[%clk 0:00:12]}  Qf5 {[%clk 0:00:02]} 43. Qd8+ {[%clk 0:00:11]}  Kh7 {[%clk 0:00:02]} 44. Qd3 {[%clk 0:00:12]}  Bg6 {[%clk 0:00:03]} 45. Qxf5 {[%clk 0:00:12]}  Bxf5 {[%clk 0:00:04]} 46. Rd6 {[%clk 0:00:12]}  b4 {[%clk 0:00:02]} 47. Rb6 {[%clk 0:00:11]}  a3 {[%clk 0:00:02]} 48. bxa3 {[%clk 0:00:12]}  bxa3 {[%clk 0:00:02]} 49. Ra6 {[%clk 0:00:12]}  Kg6 {[%clk 0:00:03]} 50. Rxa3 {[%clk 0:00:13]}  Kf6 {[%clk 0:00:04]} 51. Kg2 {[%clk 0:00:13]}  g5 {[%clk 0:00:04]} 52. hxg5+ {[%clk 0:00:13]}  hxg5 {[%clk 0:00:05]} 53. Kf3 {[%clk 0:00:13]}  Ke5 {[%clk 0:00:04]} 54. g4 {[%clk 0:00:13]}  Bg6 {[%clk 0:00:04]} 55. Ra5+ {[%clk 0:00:13]}  Kf6 {[%clk 0:00:05]} 56. e4 {[%clk 0:00:13]}  e5 {[%clk 0:00:03]} 57. Ra6+ {[%clk 0:00:13]}  Kf7 {[%clk 0:00:03]} 58. Ke3 {[%clk 0:00:13]}  Bh7 {[%clk 0:00:04]} 59. Kd3 {[%clk 0:00:13]}  Bg6 {[%clk 0:00:04]} 60. Ra5 {[%clk 0:00:13]}  Kf6 {[%clk 0:00:04]} 61. Ra1 {[%clk 0:00:12]}  Bh7 {[%clk 0:00:04]} 62. Re1 {[%clk 0:00:13]}  Ke6 {[%clk 0:00:04]} 63. Kc3 {[%clk 0:00:13]}  Bg6 {[%clk 0:00:04]} 64. Kc4 {[%clk 0:00:13]}  Be8 {[%clk 0:00:03]} 65. Kc5 {[%clk 0:00:13]}  Bg6 {[%clk 0:00:03]} 66. Re2 {[%clk 0:00:12]}  Bh7 {[%clk 0:00:04]} 67. Kc6 {[%clk 0:00:11]}  Bg6 {[%clk 0:00:04]} 68. Kc5 {[%clk 0:00:10]}  Bh7 {[%clk 0:00:04]} 69. Kc4 {[%clk 0:00:07]}  Bg6 {[%clk 0:00:05]} 70. Kd3 {[%clk 0:00:08]}  Kf6 {[%clk 0:00:05]} 71. Ra2 {[%clk 0:00:08]}  Bh7 {[%clk 0:00:04]} 72. Ra6+ {[%clk 0:00:09]}  Kf7 {[%clk 0:00:03]} 73. Ra7+ {[%clk 0:00:08]}  Kg6 {[%clk 0:00:03]} 74. Re7 {[%clk 0:00:09]}  Bg8 {[%clk 0:00:03]} 75. Rxe5 {[%clk 0:00:09]}  Kf6 {[%clk 0:00:04]} 76. Rf5+ {[%clk 0:00:09]}  Kg6 {[%clk 0:00:05]} 77. Kd4 {[%clk 0:00:09]}  Be6 {[%clk 0:00:05]} 78. Rb5 {[%clk 0:00:09]}  Bxg4 {[%clk 0:00:06]} 79. Ke5 {[%clk 0:00:10]}  Bf3 {[%clk 0:00:04]} 80. Rb6+ {[%clk 0:00:10]}  Kh5 {[%clk 0:00:03]} 81. Kf5 {[%clk 0:00:10]}  g4 {[%clk 0:00:03]} 82. e5 {[%clk 0:00:10]}  g3 {[%clk 0:00:03]} 83. Rb8 {[%clk 0:00:10]}  Kh4 {[%clk 0:00:03]} 84. Rh8+ {[%clk 0:00:10]}  Bh5 {[%clk 0:00:04]} 85. Rg8 {[%clk 0:00:08]}  Kh3 {[%clk 0:00:04]} 86. Kf4 {[%clk 0:00:05]}  g2 {[%clk 0:00:04]} 87. Ke3 {[%clk 0:00:05]}  Bg4 {[%clk 0:00:04]} 88. Kf2 {[%clk 0:00:05]}  Bf5 {[%clk 0:00:02]} 89. Rxg2 {[%clk 0:00:04]}  Bg4 {[%clk 0:00:03]} 90. Rg1 {[%clk 0:00:04]}  Kh4 {[%clk 0:00:03]} 91. Ke3 {[%clk 0:00:04]}  Kg5 {[%clk 0:00:04]} 92. Ke4 {[%clk 0:00:05]} 1-0


[Site "https://www.chess.com"]

[Event "Titled Tuesday Blitz February 15 Early 2022"]
[White "Yuan, Qingyu"]
[Black "Topalov, Aleksandar"]
[WhiteFideId "8609772"]
[BlackFideId "925659"]
[WhiteElo "2359"]
[BlackElo "2098"]
[Result "1-0"]
[Round "02"]
[TimeControl "180+1"]
[Date "2022.02.15"]
[WhiteClock "0:01:18"]
[BlackClock "0:00:01"]

1. Nf3 {[%clk 0:03:00]}  Nf6 {[%clk 0:00:58]} 2. b3 {[%clk 0:02:59]}  g6 {[%clk 0:00:58]} 3. g3 {[%clk 0:02:59]}  Bg7 {[%clk 0:00:58]} 4. Bb2 {[%clk 0:02:59]}  O-O {[%clk 0:00:59]} 5. Bg2 {[%clk 0:03:00]}  d6 {[%clk 0:00:59]} 6. d4 {[%clk 0:02:59]}  Nbd7 {[%clk 0:00:59]} 7. O-O {[%clk 0:03:00]}  e5 {[%clk 0:00:59]} 8. dxe5 {[%clk 0:03:00]}  Ng4 {[%clk 0:00:59]} 9. Qd2 {[%clk 0:02:59]}  Ngxe5 {[%clk 0:00:59]} 10. Nxe5 {[%clk 0:03:00]}  Nxe5 {[%clk 0:00:59]} 11. c4 {[%clk 0:02:59]}  Bd7 {[%clk 0:00:58]} 12. Bxb7 {[%clk 0:02:54]}  Rb8 {[%clk 0:00:47]} 13. Ba6 {[%clk 0:02:10]}  Rb6 {[%clk 0:00:44]} 14. Bb5 {[%clk 0:02:07]}  c6 {[%clk 0:00:31]} 15. Ba4 {[%clk 0:02:07]}  Nxc4 {[%clk 0:00:31]} 16. bxc4 {[%clk 0:01:53]}  Bxb2 {[%clk 0:00:30]} 17. Nc3 {[%clk 0:01:49]}  Bxa1 {[%clk 0:00:29]} 18. Rxa1 {[%clk 0:01:50]}  Be6 {[%clk 0:00:27]} 19. Ne4 {[%clk 0:01:46]}  d5 {[%clk 0:00:19]} 20. cxd5 {[%clk 0:01:46]}  cxd5 {[%clk 0:00:18]} 21. Nc5 {[%clk 0:01:42]}  Qe7 {[%clk 0:00:15]} 22. Nd3 {[%clk 0:01:41]}  Rfb8 {[%clk 0:00:12]} 23. Bc2 {[%clk 0:01:39]}  Qf6 {[%clk 0:00:09]} 24. Rd1 {[%clk 0:01:35]}  Rc8 {[%clk 0:00:08]} 25. Ba4 {[%clk 0:01:27]}  Qc3 {[%clk 0:00:08]} 26. Qg5 {[%clk 0:01:24]}  d4 {[%clk 0:00:05]} 27. h4 {[%clk 0:01:23]}  Bxa2 {[%clk 0:00:03]} 28. h5 {[%clk 0:01:23]}  Qa3 {[%clk 0:00:02]} 29. Bd7 {[%clk 0:01:19]}  Rf8 {[%clk 0:00:01]} 30. h6 {[%clk 0:01:18]} 1-0


[Site "https://www.chess.com"]

[Event "Titled Tuesday Blitz February 15 Early 2022"]
[White "Zavivaeva, Emilia"]
[Black "Hirneise, Jens"]
[WhiteFideId "34127531"]
[BlackFideId "24614734"]
[WhiteElo "1685"]
[BlackElo "2323"]
[Result "0-1"]
[Round "02"]
[TimeControl "180+1"]
[Date "2022.02.15"]
[WhiteClock "0:00:35"]
[BlackClock "0:00:55"]

1. e4 {[%clk 0:02:55]}  e5 {[%clk 0:02:56]} 2. Nf3 {[%clk 0:02:55]}  Nf6 {[%clk 0:02:55]} 3. Nxe5 {[%clk 0:02:53]}  d6 {[%clk 0:02:55]} 4. Nf3 {[%clk 0:02:52]}  Nxe4 {[%clk 0:02:56]} 5. Nc3 {[%clk 0:02:48]}  Nf6 {[%clk 0:02:54]} 6. d4 {[%clk 0:02:46]}  Be7 {[%clk 0:02:55]} 7. Be3 {[%clk 0:02:38]}  O-O {[%clk 0:02:56]} 8. Bd3 {[%clk 0:02:35]}  Nbd7 {[%clk 0:02:53]} 9. h3 {[%clk 0:02:28]}  Re8 {[%clk 0:02:53]} 10. Qd2 {[%clk 0:02:22]}  d5 {[%clk 0:02:44]} 11. O-O-O {[%clk 0:02:20]}  c6 {[%clk 0:02:38]} 12. g4 {[%clk 0:02:20]}  b5 {[%clk 0:02:38]} 13. h4 {[%clk 0:01:44]}  b4 {[%clk 0:02:09]} 14. Ne2 {[%clk 0:01:23]}  Nb6 {[%clk 0:02:01]} 15. Ne5 {[%clk 0:01:15]}  Nxg4 {[%clk 0:01:45]} 16. Bg5 {[%clk 0:01:03]}  Nxf2 {[%clk 0:01:27]} 17. Nxc6 {[%clk 0:00:57]}  Qc7 {[%clk 0:01:27]} 18. Nxe7+ {[%clk 0:00:56]}  Rxe7 {[%clk 0:01:26]} 19. Bxe7 {[%clk 0:00:56]}  Qxe7 {[%clk 0:01:22]} 20. Nf4 {[%clk 0:00:49]}  Nxh1 {[%clk 0:01:16]} 21. Rxh1 {[%clk 0:00:48]}  Bg4 {[%clk 0:01:06]} 22. Re1 {[%clk 0:00:45]}  Qxh4 {[%clk 0:01:05]} 23. Qxb4 {[%clk 0:00:42]}  h5 {[%clk 0:01:01]} 24. Nxd5 {[%clk 0:00:35]}  Nxd5 {[%clk 0:00:56]} 25. Qb7 {[%clk 0:00:35]}  Qxe1# {[%clk 0:00:55]} 0-1


[Site "https://www.chess.com"]

[Event "Titled Tuesday Blitz February 15 Early 2022"]
[White "Al Mukhaini, Shima"]
[Black "Ceres, Dragos"]
[WhiteFideId "22005854"]
[BlackFideId "13905864"]
[WhiteElo "2403"]
[BlackElo "2072"]
[Result "0-1"]
[Round "03"]
[TimeControl "180+1"]
[Date "2022.02.15"]
[WhiteClock "0:00:03"]
[BlackClock "0:00:24"]

1. d4 {[%clk 0:02:02]}  Nf6 {[%clk 0:02:57]} 2. c4 {[%clk 0:02:01]}  e6 {[%clk 0:02:58]} 3. Nc3 {[%clk 0:02:02]}  Bb4 {[%clk 0:02:57]} 4. e3 {[%clk 0:02:02]}  O-O {[%clk 0:02:57]} 5. Ne2 {[%clk 0:02:02]}  c6 {[%clk 0:02:58]} 6. a3 {[%clk 0:02:02]}  Ba5 {[%clk 0:02:58]} 7. b4 {[%clk 0:02:01]}  Bc7 {[%clk 0:02:58]} 8. Bb2 {[%clk 0:02:02]}  d5 {[%clk 0:02:58]} 9. c5 {[%clk 0:02:01]}  e5 {[%clk 0:02:55]} 10. dxe5 {[%clk 0:02:00]}  Bxe5 {[%clk 0:02:56]} 11. Nd4 {[%clk 0:01:54]}  Re8 {[%clk 0:02:45]} 12. Be2 {[%clk 0:01:52]}  Nbd7 {[%clk 0:02:34]} 13. O-O {[%clk 0:01:50]}  Nf8 {[%clk 0:02:34]} 14. Qc2 {[%clk 0:01:34]}  Ng6 {[%clk 0:02:33]} 15. Nf5 {[%clk 0:01:23]}  Ne4 {[%clk 0:02:11]} 16. Ng3 {[%clk 0:01:22]}  Nxg3 {[%clk 0:02:02]} 17. hxg3 {[%clk 0:01:20]}  Qc7 {[%clk 0:01:40]} 18. Rad1 {[%clk 0:01:17]}  Bf6 {[%clk 0:01:05]} 19. Bd3 {[%clk 0:01:13]}  Bg4 {[%clk 0:01:01]} 20. Rde1 {[%clk 0:01:04]}  Re7 {[%clk 0:00:57]} 21. Ne2 {[%clk 0:01:02]}  Bxb2 {[%clk 0:00:54]} 22. Qxb2 {[%clk 0:01:02]}  Bxe2 {[%clk 0:00:49]} 23. Rxe2 {[%clk 0:01:00]}  Ne5 {[%clk 0:00:49]} 24. Rd1 {[%clk 0:00:56]}  Rae8 {[%clk 0:00:48]} 25. Bb1 {[%clk 0:00:54]}  g6 {[%clk 0:00:44]} 26. Ba2 {[%clk 0:00:49]}  Ng4 {[%clk 0:00:41]} 27. Red2 {[%clk 0:00:42]}  Rxe3 {[%clk 0:00:26]} 28. Qc2 {[%clk 0:00:05]}  Re1+ {[%clk 0:00:24]} 29. Rxe1 {[%clk 0:00:03]}  Rxe1# {[%clk 0:00:24]} 0-1


[Site "https://www.chess.com"]

[Event "Titled Tuesday Blitz February 15 Early 2022"]
[White "Aradhya, Garg"]
[Black "Fernandez, Michael"]
[WhiteFideId "25006746"]
[BlackFideId "5803560"]
[WhiteElo "2169"]
[BlackElo "2110"]
[Result "1-0"]
[Round "03"]
[TimeControl "180+1"]
[Date "2022.02.15"]
[WhiteClock "0:02:10"]
[BlackClock "0:01:52"]

1. d4 {[%clk 0:02:55]}  b5 {[%clk 0:03:00]} 2. e4 {[%clk 0:02:54]}  Bb7 {[%clk 0:03:00]} 3. Bd3 {[%clk 0:02:51]}  e6 {[%clk 0:03:00]} 4. Nf3 {[%clk 0:02:51]}  a6 {[%clk 0:02:57]} 5. O-O {[%clk 0:02:51]}  d6 {[%clk 0:02:55]} 6. a4 {[%clk 0:02:51]}  Nd7 {[%clk 0:02:53]} 7. Nbd2 {[%clk 0:02:49]}  c6 {[%clk 0:02:48]} 8. Re1 {[%clk 0:02:48]}  Ngf6 {[%clk 0:02:48]} 9. c3 {[%clk 0:02:48]}  Be7 {[%clk 0:02:48]} 10. e5 {[%clk 0:02:27]}  dxe5 {[%clk 0:02:40]} 11. dxe5 {[%clk 0:02:28]}  Nd5 {[%clk 0:02:40]} 12. Ne4 {[%clk 0:02:28]}  Nc5 {[%clk 0:02:29]} 13. Nxc5 {[%clk 0:02:28]}  Bxc5 {[%clk 0:02:29]} 14. Qe2 {[%clk 0:02:26]}  Qc7 {[%clk 0:02:21]} 15. h4 {[%clk 0:02:19]}  h6 {[%clk 0:02:18]} 16. b4 {[%clk 0:02:16]}  Be7 {[%clk 0:02:15]} 17. Bd2 {[%clk 0:02:15]}  O-O {[%clk 0:02:06]} 18. Qe4 {[%clk 0:02:14]}  g6 {[%clk 0:02:00]} 19. h5 {[%clk 0:02:13]}  c5 {[%clk 0:01:52]} 20. hxg6 {[%clk 0:02:10]} 1-0


[Site "https://www.chess.com"]

[Event "Titled Tuesday Blitz February 15 Early 2022"]
[White "Atakhan, Abtin"]
[Black "Kujawski, Adam"]
[WhiteFideId "22502203"]
[BlackFideId "1100920"]
[WhiteElo "2119"]
[BlackElo "2053"]
[Result "1-0"]
[Round "03"]
[TimeControl "180+1"]
[Date "2022.02.15"]
[WhiteClock "0:01:26"]
[BlackClock "0:00:26"]

1. e4 {[%clk 0:02:56]}  e5 {[%clk 0:02:58]} 2. Nf3 {[%clk 0:02:54]}  Nc6 {[%clk 0:02:58]} 3. Bb5 {[%clk 0:02:53]}  a6 {[%clk 0:02:58]} 4. Ba4 {[%clk 0:02:53]}  Nf6 {[%clk 0:02:58]} 5. O-O {[%clk 0:02:54]}  b5 {[%clk 0:02:59]} 6. Bb3 {[%clk 0:02:53]}  Be7 {[%clk 0:02:59]} 7. Re1 {[%clk 0:02:52]}  d6 {[%clk 0:02:58]} 8. c3 {[%clk 0:02:52]}  O-O {[%clk 0:02:57]} 9. h3 {[%clk 0:02:52]}  Nb8 {[%clk 0:02:57]} 10. d4 {[%clk 0:02:52]}  Nbd7 {[%clk 0:02:56]} 11. Nbd2 {[%clk 0:02:47]}  Bb7 {[%clk 0:02:56]} 12. Bc2 {[%clk 0:02:47]}  Re8 {[%clk 0:02:56]} 13. Nf1 {[%clk 0:02:45]}  Bf8 {[%clk 0:02:56]} 14. Ng3 {[%clk 0:02:44]}  g6 {[%clk 0:02:56]} 15. a4 {[%clk 0:02:27]}  c5 {[%clk 0:02:54]} 16. d5 {[%clk 0:02:26]}  c4 {[%clk 0:02:53]} 17. Bg5 {[%clk 0:02:22]}  h6 {[%clk 0:02:50]} 18. Be3 {[%clk 0:02:18]}  Kh7 {[%clk 0:02:49]} 19. Nh2 {[%clk 0:02:14]}  Nc5 {[%clk 0:02:48]} 20. Rf1 {[%clk 0:02:13]}  Nfd7 {[%clk 0:02:42]} 21. Ng4 {[%clk 0:02:06]}  Qh4 {[%clk 0:02:33]} 22. Kh2 {[%clk 0:01:48]}  h5 {[%clk 0:02:22]} 23. Bxc5 {[%clk 0:01:38]}  Nxc5 {[%clk 0:02:13]} 24. Ne3 {[%clk 0:01:35]}  Qg5 {[%clk 0:01:07]} 25. Qe1 {[%clk 0:01:34]}  Bh6 {[%clk 0:01:01]} 26. Qd1 {[%clk 0:01:32]}  h4 {[%clk 0:00:44]} 27. Ne2 {[%clk 0:01:29]}  Nxe4 {[%clk 0:00:26]} 28. Bxe4 {[%clk 0:01:26]}  Qf4+ {[%clk 0:00:26]} 29. Nxf4 {[%clk 0:01:26]} 1-0


[Site "https://www.chess.com"]